fUST/lending_fUST_20250929
["ID","MTS","AMOUNT","RATE_DAILY","PERIOD"]
[388370048,1759128654900,-151.0,0.00027647,2]
[388370049,1759128654910,-500.0,0.00027647,2]
[388370050,1759128654920,-151.0,0.00027647,2]
[388370051,1759128654929,-151.0,0.00027647,2]
[388370052,1759128654938,-800.0,0.00027647,2]
[388370053,1759128654947,-3334.26,0.00027658,3]
[388370054,1759128654956,-1667.14,0.00027658,3]
[388370055,1759128654965,-833.56,0.00027658,3]
[388370056,1759128654974,-416.78,0.00027658,3]
[388370057,1759128654984,-200.0,0.0002767,10]
[388370058,1759128654993,-800.0,0.0002767,2]
[388370059,1759128655003,-151.0,0.00027671,7]
[388370060,1759128655012,-151.0,0.00027671,7]
[388370061,1759128655021,-500.0,0.00027671,7]
[388370062,1759128655030,-151.0,0.00027671,7]
[388370063,1759128655040,-151.0,0.00027671,7]
[388370064,1759128655050,-198.0,0.00027671,7]
[388370065,1759128655059,-531.68,0.00027671,7]
[388370066,1759128655068,-784.03,0.00027671,7]
[388370067,1759128655078,-480.0,0.00027671,7]
[388370068,1759128655087,-480.11,0.00027671,7]
[388370069,1759128655096,-480.0,0.00027671,7]
[388370070,1759128655106,-552.24129499,0.00027671,7]
[388370071,1759128655115,-526.44,0.00027671,7]
[388370072,1759128655125,-480.0,0.00027671,7]
[388370073,1759128655135,-480.0,0.00027671,7]
[388370074,1759128655145,-480.0,0.00027671,7]
[388370075,1759128655154,-480.0,0.00027671,7]
[388370076,1759128655164,-480.0,0.00027671,7]
[388370077,1759128655173,-549.04,0.00027671,7]
[388370078,1759128655182,-480.0,0.00027671,7]
[388370079,1759128655191,-480.0,0.00027671,7]
[388370080,1759128655199,-480.0,0.00027671,7]
[388370081,1759128655209,-480.0,0.00027671,7]
[388370082,1759128655218,-416.00640099,0.00027671,7]
[388370083,1759128655226,-895.63,0.00027671,7]
[388370084,1759128655235,-233.87608454,0.00027671,3]
[388370085,1759128655244,-480.0,0.00027671,7]
[388370086,1759128655252,-480.0,0.00027671,7]
[388370087,1759128655261,-387.58425131,0.00027671,7]
[388370088,1759128655270,-480.0,0.00027671,7]
[388370089,1759128655279,-547.34,0.00027671,7]
[388370090,1759128655287,-547.34,0.00027671,7]
[388370091,1759128655296,-704.91,0.00027671,7]
[388370092,1759128655306,-675.54,0.00027671,7]
[388370093,1759128655315,-382.72254699,0.00027671,7]
[388370094,1759128655333,-480.0,0.00027671,7]
[388370095,1759128655342,-480.0,0.00027671,7]
[388370096,1759128655351,-480.0,0.00027671,7]
[388370097,1759128655362,-480.0,0.00027671,7]
[388370098,1759128655371,-480.0,0.00027671,7]
[388370099,1759128655381,-480.0,0.00027671,7]
[388370100,1759128655394,-813.87,0.00027671,7]
[388370101,1759128655404,-480.0,0.00027671,7]
[388370102,1759128655413,-497.16,0.00027671,7]
[388370103,1759128655423,-480.0,0.00027671,7]
[388370104,1759128655433,-480.0,0.00027671,7]
[388370105,1759128655443,-480.0,0.00027671,7]
[388370106,1759128655452,-480.0,0.00027671,7]
[388370107,1759128655462,-480.0,0.00027671,7]
[388370108,1759128655473,-480.0,0.00027671,7]
[388370109,1759128655483,-480.0,0.00027671,7]
[388370110,1759128655493,-480.0,0.00027671,7]
[388370111,1759128655507,-480.0,0.00027671,7]
[388370112,1759128655517,-480.0,0.00027671,7]
[388370113,1759128655526,-265.2910514,0.00027671,7]
[388370114,1759128655537,-480.0,0.00027671,7]
[388370115,1759128655547,-769.77,0.00027671,7]
[388370116,1759128655557,-480.0,0.00027671,7]
[388370117,1759128655567,-480.0,0.00027671,7]
[388370118,1759128655576,-480.0,0.00027671,7]
[388370119,1759128655586,-480.0,0.00027671,7]
[388370120,1759128655595,-480.0,0.00027671,7]
[388370121,1759128655604,-480.0,0.00027671,7]
[388370122,1759128655614,-480.0,0.00027671,7]
[388370123,1759128655624,-598.87,0.00027671,7]
[388370124,1759128655633,-812.19,0.00027671,7]
[388370125,1759128655644,-480.0,0.00027671,7]
[388370126,1759128655653,-480.0,0.00027671,7]
[388370127,1759128655662,-480.0,0.00027671,7]
[388370128,1759128655672,-934.61,0.00027671,7]
[388370129,1759128655681,-480.0,0.00027671,7]
[388370130,1759128655690,-248.92935738,0.00027671,7]
[388370131,1759128655700,-480.0,0.00027671,7]
[388370132,1759128655715,-687.55,0.00027671,7]
[388370133,1759128655724,-661.17,0.00027671,7]
[388370134,1759128655733,-480.0,0.00027671,7]
[388370135,1759128655744,-480.0,0.00027671,7]
[388370136,1759128655753,-480.0,0.00027671,7]
[388370137,1759128655761,-500.0,0.00027671,7]
[388370138,1759128655938,-500.0,0.00027671,7]
[388370139,1759128655948,-480.0,0.00027671,7]
[388370140,1759128655959,-480.0,0.00027671,7]
[388370141,1759128655968,-480.0,0.00027671,7]
[388370142,1759128655978,-797.85,0.00027671,7]
[388370143,1759128655988,-480.0,0.00027671,7]
[388370144,1759128655997,-674.33,0.00027671,7]
[388370145,1759128656007,-151.0,0.00027671,7]
[388370146,1759128656017,-151.0,0.00027671,7]
[388370147,1759128656027,-480.0,0.00027671,7]
[388370148,1759128656037,-500.66,0.00027671,7]
[388370149,1759128656047,-480.0,0.00027671,7]
[388370150,1759128656057,-705.39,0.00027671,7]
[388370151,1759128656067,-480.0,0.00027671,7]
[388370152,1759128656076,-480.0,0.00027671,7]
[388370153,1759128656086,-349.72463355,0.00027671,7]
[388370154,1759128656095,-480.0,0.00027671,7]
[388370155,1759128656106,-480.0,0.00027671,7]
[388370156,1759128656116,-480.0,0.00027671,7]
[388370157,1759128656126,-480.0,0.00027671,7]
[388370158,1759128656141,-480.0,0.00027671,7]
[388370159,1759128656151,-480.0,0.00027671,7]
[388370160,1759128656160,-480.0,0.00027671,7]
[388370161,1759128656170,-480.0,0.00027671,7]
[388370162,1759128656179,-480.0,0.00027671,7]
[388370163,1759128656188,-480.0,0.00027671,7]
[388370164,1759128656197,-480.0,0.00027671,7]
[388370165,1759128656206,-480.0,0.00027671,7]
[388370166,1759128656216,-531.84,0.00027671,7]
[388370167,1759128656226,-552.57,0.00027671,7]
[388370168,1759128656235,-480.0,0.00027671,7]
[388370169,1759128656246,-553.57,0.00027671,7]
[388370170,1759128656255,-480.0,0.00027671,7]
[388370171,1759128656265,-480.0,0.00027671,7]
[388370172,1759128656275,-480.0,0.00027671,7]
[388370173,1759128656286,-480.0,0.00027671,7]
[388370174,1759128656295,-533.93012175,0.00027671,7]
[388370175,1759128656305,-480.0,0.00027671,7]
[388370176,1759128656314,-480.0,0.00027671,7]
[388370177,1759128656327,-480.0,0.00027671,7]
[388370178,1759128656337,-480.0,0.00027671,7]
[388370179,1759128656347,-525.5,0.00027671,7]
[388370180,1759128656357,-882.83,0.00027671,7]
[388370181,1759128656367,-575.31,0.00027671,7]
[388370182,1759128656376,-480.0,0.00027671,7]
[388370183,1759128656386,-480.0,0.00027671,7]
[388370184,1759128656396,-483.05647936,0.00027671,7]
[388370185,1759128656407,-577.16,0.00027671,7]
[388370186,1759128656415,-480.0,0.00027671,7]
[388370187,1759128656425,-669.32,0.00027671,7]
[388370188,1759128656435,-480.0,0.00027671,7]
[388370189,1759128656444,-855.14,0.00027671,7]
[388370190,1759128656453,-669.16,0.00027671,7]
[388370191,1759128656463,-773.2,0.00027671,7]
[388370192,1759128656472,-480.0,0.00027671,7]
[388370193,1759128656482,-589.27,0.00027671,7]
[388370194,1759128656491,-785.1,0.00027671,7]
[388370195,1759128656502,-480.0,0.00027671,7]
[388370196,1759128656512,-528.01,0.00027671,7]
[388370197,1759128656522,-480.0,0.00027671,7]
[388370198,1759128656535,-969.73,0.00027671,7]
[388370199,1759128656545,-480.0,0.00027671,7]
[388370200,1759128656555,-480.0,0.00027671,7]
[388370201,1759128656565,-480.0,0.00027671,7]
[388370202,1759128656576,-480.0,0.00027671,7]
[388370203,1759128656586,-480.0,0.00027671,7]
[388370204,1759128656595,-725.1,0.00027671,7]
[388370205,1759128656605,-480.0,0.00027671,7]
[388370206,1759128656614,-777.59,0.00027671,7]
[388370207,1759128656623,-480.0,0.00027671,7]
[388370208,1759128656632,-480.0,0.00027671,7]
[388370209,1759128656641,-480.0,0.00027671,7]
[388370210,1759128656652,-1514.67,0.00027671,7]
[388370211,1759128656661,-1176.2,0.00027671,7]
[388370212,1759128656671,-731.05,0.00027671,7]
[388370213,1759128656680,-480.0,0.00027671,7]
[388370214,1759128656690,-520.0,0.00027671,3]
[388370215,1759128656699,-480.0,0.00027671,7]
[388370216,1759128656708,-480.0,0.00027671,7]
[388370217,1759128656718,-535.71,0.00027671,7]
[388370218,1759128656728,-480.0,0.00027671,7]
[388370219,1759128656737,-523.15,0.00027671,7]
[388370220,1759128656746,-480.0,0.00027671,7]
[388370221,1759128656755,-992.04,0.00027671,7]
[388370222,1759128656763,-480.0,0.00027671,7]
[388370223,1759128656772,-480.0,0.00027671,7]
[388370224,1759128656783,-480.0,0.00027671,7]
[388370225,1759128656792,-480.0,0.00027671,7]
[388370226,1759128656802,-519.65,0.00027671,7]
[388370227,1759128656811,-480.0,0.00027671,7]
[388370228,1759128656821,-480.0,0.00027671,7]
[388370229,1759128656830,-507.86,0.00027671,7]
[388370230,1759128656839,-903.03,0.00027671,7]
[388370231,1759128656849,-592.56,0.00027671,7]
[388370232,1759128656859,-480.0,0.00027671,7]
[388370233,1759128656869,-959.41,0.00027671,7]
[388370234,1759128656879,-387.84086418,0.00027671,7]
[388370235,1759128656889,-480.0,0.00027671,7]
[388370236,1759128656898,-579.87,0.00027671,7]
[388370237,1759128656908,-200.9072093,0.00027671,7]
[388370238,1759128656917,-621.27,0.00027671,7]
[388370239,1759128656927,-522.05,0.00027671,7]
[388370240,1759128656937,-480.0,0.00027671,7]
[388370241,1759128656946,-480.0,0.00027671,7]
[388370242,1759128656956,-1108.83,0.00027671,7]
[388370243,1759128656966,-299.62065293,0.00027671,7]
[388370244,1759128656975,-539.25905927,0.00027671,7]
[388370245,1759128656985,-707.51,0.00027671,7]
[388370246,1759128656994,-480.0,0.00027671,7]
[388370247,1759128657004,-555.1,0.00027671,7]
[388370248,1759128657014,-480.0,0.00027671,7]
[388370249,1759128657024,-874.71,0.00027671,7]
[388370250,1759128657034,-480.0,0.00027671,7]
[388370251,1759128657044,-480.0,0.00027671,7]
[388370252,1759128657053,-848.74,0.00027671,7]
[388370253,1759128657063,-923.12,0.00027671,7]
[388370254,1759128657072,-480.0,0.00027671,7]
[388370255,1759128657082,-677.51,0.00027671,7]
[388370256,1759128657091,-494.51857176,0.00027671,7]
[388370257,1759128657100,-621.16,0.00027671,7]
[388370258,1759128657110,-480.0,0.00027671,7]
[388370259,1759128657119,-768.05,0.00027671,7]
[388370260,1759128657129,-617.63068873,0.00027671,7]
[388370261,1759128657138,-480.0,0.00027671,7]
[388370262,1759128657147,-480.0,0.00027671,7]
[388370263,1759128657156,-480.0,0.00027671,7]
[388370264,1759128657165,-649.28,0.00027671,7]
[388370265,1759128657175,-901.78,0.00027671,7]
[388370266,1759128657184,-674.0,0.00027671,7]
[388370267,1759128657193,-480.0,0.00027671,7]
[388370268,1759128657203,-480.0,0.00027671,7]
[388370269,1759128657212,-480.0,0.00027671,7]
[388370270,1759128657221,-1291.96,0.00027671,7]
[388370271,1759128657230,-714.2,0.00027671,7]
[388370272,1759128657240,-480.0,0.00027671,7]
[388370273,1759128657249,-831.68,0.00027671,7]
[388370274,1759128657259,-468.03272221,0.00027671,7]
[388370275,1759128657268,-480.0,0.00027671,7]
[388370276,1759128657277,-480.0,0.00027671,7]
[388370277,1759128657287,-480.0,0.00027671,7]
[388370278,1759128657297,-818.83,0.00027671,7]
[388370279,1759128657306,-972.24,0.00027671,7]
[388370280,1759128657315,-480.0,0.00027671,7]
[388370281,1759128657325,-480.0,0.00027671,7]
[388370282,1759128657336,-1043.64,0.00027671,7]
[388370283,1759128657346,-482.05,0.00027671,7]
[388370284,1759128657355,-480.0,0.00027671,7]
[388370285,1759128657364,-481.57174167,0.00027671,7]
[388370286,1759128657374,-480.0,0.00027671,7]
[388370287,1759128657383,-758.71,0.00027671,7]
[388370288,1759128657392,-480.0,0.00027671,7]
[388370289,1759128657402,-480.0,0.00027671,7]
[388370290,1759128657411,-480.0,0.00027671,7]
[388370291,1759128657420,-964.09,0.00027671,7]
[388370292,1759128657430,-999.34,0.00027671,7]
[388370293,1759128657440,-480.0,0.00027671,7]
[388370294,1759128657449,-542.07,0.00027671,7]
[388370295,1759128657458,-480.0,0.00027671,7]
[388370296,1759128657468,-724.5,0.00027671,7]
[388370297,1759128657477,-480.0,0.00027671,7]
[388370298,1759128657487,-1734.1,0.00027671,7]
[388370299,1759128657497,-567.34,0.00027671,7]
[388370300,1759128657507,-531.84,0.00027671,7]
[388370301,1759128657517,-531.84,0.00027671,7]
[388370302,1759128657526,-1157.59,0.00027671,7]
[388370303,1759128657537,-1052.4,0.00027671,7]
[388370304,1759128657547,-581.73,0.00027671,7]
[388370305,1759128657557,-877.5,0.00027671,7]
[388370306,1759128657567,-480.0,0.00027671,7]
[388370307,1759128657577,-480.0,0.00027671,7]
[388370308,1759128657587,-2612.36,0.00027671,7]
[388370309,1759128657598,-480.0,0.00027671,7]
[388370310,1759128657608,-480.0,0.00027671,7]
[388370311,1759128657618,-480.0,0.00027671,7]
[388370312,1759128657627,-480.0,0.00027671,7]
[388370313,1759128657637,-480.0,0.00027671,7]
[388370314,1759128657646,-2720.18,0.00027671,7]
[388370315,1759128657655,-480.0,0.00027671,7]
[388370316,1759128657665,-564.69,0.00027671,7]
[388370317,1759128657675,-480.0,0.00027671,7]
[388370318,1759128657684,-1759.59,0.00027671,7]
[388370319,1759128657693,-657.08,0.00027671,7]
[388370320,1759128657702,-480.0,0.00027671,7]
[388370321,1759128657712,-480.0,0.00027671,7]
[388370322,1759128657721,-480.0,0.00027671,7]
[388370323,1759128657731,-544.02,0.00027671,7]
[388370324,1759128657740,-1323.45,0.00027671,7]
[388370325,1759128657750,-480.0,0.00027671,7]
[388370326,1759128657759,-563.44,0.00027671,7]
[388370327,1759128657768,-767.32,0.00027671,7]
[388370328,1759128657778,-480.0,0.00027671,7]
[388370329,1759128657788,-636.76,0.00027671,7]
[388370330,1759128657798,-851.3,0.00027671,7]
[388370331,1759128657807,-931.97,0.00027671,7]
[388370332,1759128657817,-15773.79,0.00027671,7]
[388370333,1759128657826,-500.0,0.00027671,7]
[388370334,1759128657835,-480.0,0.00027671,7]
[388370335,1759128657845,-480.0,0.00027671,7]
[388370336,1759128657855,-566.55,0.00027671,7]
[388370337,1759128657864,-480.0,0.00027671,7]
[388370338,1759128657874,-480.0,0.00027671,7]
[388370339,1759128657883,-3501.86,0.00027671,7]
[388370340,1759128657893,-480.0,0.00027671,7]
[388370341,1759128657902,-480.0,0.00027671,7]
[388370342,1759128657912,-496.77,0.00027671,7]
[388370343,1759128657922,-480.0,0.00027671,7]
[388370344,1759128657931,-480.0,0.00027671,7]
[388370345,1759128657941,-480.0,0.00027671,7]
[388370346,1759128657951,-480.0,0.00027671,7]
[388370347,1759128657960,-480.0,0.00027671,7]
[388370348,1759128657970,-539.31,0.00027671,7]
[388370349,1759128657979,-518.33,0.00027671,7]
[388370350,1759128657988,-500.0,0.00027671,7]
[388370351,1759128657997,-487.02,0.00027671,7]
[388370352,1759128658007,-480.0,0.00027671,7]
[388370353,1759128658016,-908.56,0.00027671,7]
[388370354,1759128658026,-480.0,0.00027671,7]
[388370355,1759128658035,-480.0,0.00027671,7]
[388370356,1759128658045,-776.38,0.00027671,7]
[388370357,1759128658055,-480.0,0.00027671,7]
[388370358,1759128658064,-640.75,0.00027671,7]
[388370359,1759128658073,-480.0,0.00027671,7]
[388370360,1759128658083,-679.28,0.00027671,7]
[388370361,1759128658092,-836.96,0.00027671,7]
[388370362,1759128658102,-480.0,0.00027671,7]
[388370363,1759128658111,-480.0,0.00027671,7]
[388370364,1759128658122,-3041.42,0.00027671,7]
[388370365,1759128658131,-823.77,0.00027671,7]
[388370366,1759128658140,-691.12,0.00027671,7]
[388370367,1759128658150,-480.0,0.00027671,7]
[388370368,1759128658159,-1311.86,0.00027671,7]
[388370369,1759128658168,-3679.36,0.00027671,7]
[388370370,1759128658178,-480.0,0.00027671,7]
[388370371,1759128658187,-480.0,0.00027671,7]
[388370372,1759128658196,-802.57,0.00027671,7]
[388370373,1759128658206,-249.87734447,0.00027671,7]
[388370374,1759128658215,-812.92,0.00027671,7]
[388370375,1759128658224,-480.0,0.00027671,7]
[388370376,1759128658234,-1609.36,0.00027671,7]
[388370377,1759128658243,-480.0,0.00027671,7]
[388370378,1759128658253,-954.8,0.00027671,7]
[388370379,1759128658263,-480.0,0.00027671,7]
[388370380,1759128658273,-480.0,0.00027671,7]
[388370381,1759128658283,-1015.79,0.00027671,7]
[388370382,1759128658293,-1494.37,0.00027671,7]
[388370383,1759128658304,-480.0,0.00027671,7]
[388370384,1759128658314,-480.0,0.00027671,7]
[388370385,1759128658327,-610.76419353,0.00027671,7]
[388370386,1759128658340,-480.0,0.00027671,7]
[388370387,1759128658349,-897.38,0.00027671,7]
[388370388,1759128658358,-480.0,0.00027671,7]
[388370389,1759128658368,-3809.93,0.00027671,7]
[388370390,1759128658378,-480.0,0.00027671,7]
[388370391,1759128658387,-480.0,0.00027671,7]
[388370392,1759128658398,-480.0,0.00027671,7]
[388370393,1759128658407,-1099.25,0.00027671,7]
[388370394,1759128658417,-480.0,0.00027671,7]
[388370395,1759128658426,-480.0,0.00027671,7]
[388370396,1759128658435,-1023.87,0.00027671,7]
[388370397,1759128658445,-480.0,0.00027671,7]
[388370398,1759128658454,-480.0,0.00027671,7]
[388370399,1759128658464,-482.94049831,0.00027671,7]
[388370400,1759128658474,-1540.07,0.00027671,7]
[388370401,1759128658483,-1427.44,0.00027671,7]
[388370402,1759128658492,-480.0,0.00027671,7]
[388370403,1759128658502,-480.0,0.00027671,7]
[388370404,1759128658511,-1051.85,0.00027671,7]
[388370405,1759128658520,-1384.27,0.00027671,7]
[388370406,1759128658530,-480.0,0.00027671,7]
[388370407,1759128658540,-798.74,0.00027671,7]
[388370408,1759128658550,-1398.68,0.00027671,7]
[388370409,1759128658560,-480.0,0.00027671,7]
[388370410,1759128658570,-480.0,0.00027671,7]
[388370411,1759128658580,-480.0,0.00027671,7]
[388370412,1759128658589,-790.29,0.00027671,7]
[388370413,1759128658599,-480.0,0.00027671,7]
[388370414,1759128658607,-780.33,0.00027671,7]
[388370415,1759128658616,-680.16,0.00027671,7]
[388370416,1759128658625,-480.0,0.00027671,7]
[388370417,1759128658635,-5231.52,0.00027671,7]
[388370418,1759128658644,-759.34,0.00027671,7]
[388370419,1759128658654,-483.67853633,0.00027671,7]
[388370420,1759128658663,-550.02,0.00027671,7]
[388370421,1759128658672,-1189.57,0.00027671,7]
[388370422,1759128658682,-530.15,0.00027671,7]
[388370423,1759128658692,-480.0,0.00027671,7]
[388370424,1759128658701,-813.1,0.00027671,7]
[388370425,1759128658711,-480.0,0.00027671,7]
[388370426,1759128658720,-480.0,0.00027671,7]
[388370427,1759128658730,-1103.84,0.00027671,7]
[388370428,1759128658740,-480.0,0.00027671,7]
[388370429,1759128658750,-1080.8,0.00027671,7]
[388370430,1759128658760,-585.19,0.00027671,7]
[388370431,1759128658769,-480.0,0.00027671,7]
[388370432,1759128658779,-2648.62,0.00027671,7]
[388370433,1759128658788,-480.0,0.00027671,7]
[388370434,1759128658797,-480.0,0.00027671,7]
[388370435,1759128658806,-2414.31,0.00027671,7]
[388370436,1759128658816,-480.0,0.00027671,7]
[388370437,1759128658825,-480.0,0.00027671,7]
[388370438,1759128658834,-805.49,0.00027671,7]
[388370439,1759128658843,-694.56,0.00027671,7]
[388370440,1759128658852,-480.0,0.00027671,7]
[388370441,1759128658861,-3800.0,0.00027671,7]
[388370442,1759128658871,-1015.59,0.00027671,7]
[388370443,1759128658881,-480.0,0.00027671,7]
[388370444,1759128658890,-638.48,0.00027671,7]
[388370445,1759128658899,-772.28,0.00027671,7]
[388370446,1759128658909,-480.0,0.00027671,7]
[388370447,1759128659066,-480.0,0.00027671,7]
[388370448,1759128659076,-2461.93,0.00027671,7]
[388370449,1759128659085,-588.87,0.00027671,7]
[388370450,1759128659095,-882.11,0.00027671,7]
[388370451,1759128659104,-756.4,0.00027671,7]
[388370452,1759128659113,-480.0,0.00027671,7]
[388370453,1759128659122,-3874.46,0.00027671,7]
[388370454,1759128659132,-480.0,0.00027671,7]
[388370455,1759128659141,-943.15,0.00027671,7]
[388370456,1759128659150,-480.0,0.00027671,7]
[388370457,1759128659160,-480.0,0.00027671,7]
[388370458,1759128659169,-480.0,0.00027671,7]
[388370459,1759128659178,-480.0,0.00027671,7]
[388370460,1759128659188,-2236.08,0.00027671,7]
[388370461,1759128659197,-2179.33,0.00027671,7]
[388370462,1759128659206,-448.12717202,0.00027671,7]
[388370463,1759128659216,-480.0,0.00027671,7]
[388370464,1759128659225,-952.18,0.00027671,7]
[388370465,1759128659235,-728.03,0.00027671,7]
[388370466,1759128659245,-480.0,0.00027671,7]
[388370467,1759128659255,-480.0,0.00027671,7]
[388370468,1759128659265,-1523.82,0.00027671,7]
[388370469,1759128659274,-1023.32,0.00027671,7]
[388370470,1759128659283,-1958.0,0.00027671,7]
[388370471,1759128659293,-480.0,0.00027671,7]
[388370472,1759128659302,-2983.24,0.00027671,7]
[388370473,1759128659312,-992.29,0.00027671,7]
[388370474,1759128659323,-720.44,0.00027671,7]
[388370475,1759128659334,-480.0,0.00027671,7]
[388370476,1759128659343,-1135.45,0.00027671,7]
[388370477,1759128659352,-643.05,0.00027671,7]
[388370478,1759128659362,-821.74,0.00027671,7]
[388370479,1759128659372,-480.0,0.00027671,7]
[388370480,1759128659382,-480.0,0.00027671,7]
[388370481,1759128659391,-920.3,0.00027671,7]
[388370482,1759128659401,-1452.85,0.00027671,7]
[388370483,1759128659411,-480.0,0.00027671,7]
[388370484,1759128659420,-1214.29,0.00027671,7]
[388370485,1759128659430,-480.0,0.00027671,7]
[388370486,1759128659440,-2970.42,0.00027671,7]
[388370487,1759128659449,-480.0,0.00027671,7]
[388370488,1759128659459,-480.0,0.00027671,7]
[388370489,1759128659468,-1197.94,0.00027671,7]
[388370490,1759128659478,-1027.93,0.00027671,7]
[388370491,1759128659487,-480.0,0.00027671,7]
[388370492,1759128659497,-582.32,0.00027671,7]
[388370493,1759128659506,-480.0,0.00027671,7]
[388370494,1759128659516,-8455.84,0.00027671,7]
[388370495,1759128659526,-926.52,0.00027671,7]
[388370496,1759128659536,-480.0,0.00027671,7]
[388370497,1759128659545,-480.0,0.00027671,7]
[388370498,1759128659556,-480.0,0.00027671,7]
[388370499,1759128659565,-480.0,0.00027671,7]
[388370500,1759128659575,-870.42,0.00027671,7]
[388370501,1759128659584,-892.52,0.00027671,7]
[388370502,1759128659594,-809.33,0.00027671,7]
[388370503,1759128659603,-480.0,0.00027671,7]
[388370504,1759128659613,-480.0,0.00027671,7]
[388370505,1759128659622,-8536.49,0.00027671,7]
[388370506,1759128659632,-480.0,0.00027671,7]
[388370507,1759128659641,-943.86,0.00027671,7]
[388370508,1759128659650,-480.0,0.00027671,7]
[388370509,1759128659659,-480.0,0.00027671,7]
[388370510,1759128659668,-506.2564663,0.00027671,7]
[388370511,1759128659678,-1624.12,0.00027671,7]
[388370512,1759128659687,-728.92,0.00027671,7]
[388370513,1759128659696,-765.58,0.00027671,7]
[388370514,1759128659706,-1117.74,0.00027671,7]
[388370515,1759128659716,-947.96,0.00027671,7]
[388370516,1759128659725,-1013.53,0.00027671,7]
[388370517,1759128659734,-1203.54533754,0.00027671,7]
[388370518,1759128659763,-2914.09148044,0.00027671,7]
[388370519,1759128659787,-409.14318202,0.00027671,7]
[388370520,1759128659796,-480.0,0.00027671,7]
[388370521,1759128659806,-480.0,0.00027671,7]
[388370522,1759128659815,-820.4,0.00027671,7]
[388370523,1759128659825,-243.25451123,0.00027671,7]
[388370524,1759128660235,-0.02856475,0.00027287,7]
[388370525,1759128660274,-8467.00391725,0.00027287,7]
[388370526,1759128660284,-5648.72128107,0.00027297,7]
[388370527,1759128663665,-250.0,0.00027281,2]
[388370528,1759128663674,-250.0,0.00027281,2]
[388370529,1759128663685,-250.0,0.00027281,2]
[388370530,1759128663694,-250.0,0.00027281,2]
[388370531,1759128663703,-250.0,0.00027281,2]
[388370532,1759128663714,-151.0,0.00027287,7]
[388370533,1759128663723,-151.0,0.00027287,7]
[388370534,1759128663733,-196.266576,0.00027287,7]
[388370535,1759128663743,-196.266576,0.00027287,7]
[388370536,1759128663753,-196.266576,0.00027287,7]
[388370537,1759128663763,-2818.31120093,0.00027297,7]
[388370538,1759128663773,-151.0,0.00027297,7]
[388370539,1759128663782,-196.266576,0.00027297,7]
[388370540,1759128663794,-196.266576,0.00027297,7]
[388370541,1759128663804,-8467.032482,0.00027373,7]
[388370542,1759128663813,-289.170097,0.00027373,7]
[388370543,1759128663823,-196.266576,0.00027373,7]
[388370544,1759128663833,-196.266576,0.00027373,7]
[388370545,1759128663844,-8467.032482,0.00027396,7]
[388370546,1759128663853,-196.266576,0.00027396,7]
[388370547,1759128663862,-196.266576,0.00027396,7]